bitfinex/quotes_BTCUSD_20250208
["timestamp","ask_amount","ask_price","bid_price","bid_amount"]
[1739000123537,0.0001067,96181.0,96180.0,0.15875962]
[1739000124348,0.0001067,96181.0,96180.0,0.1694427]
[1739000127634,0.0416967,96181.0,96180.0,0.1694427]
[1739000128246,0.0416967,96181.0,96180.0,0.16966677]
[1739000130336,0.0416967,96181.0,96180.0,0.17066677]
[1739000130834,0.0416967,96181.0,96180.0,0.16921444]
[1739000131046,0.0416967,96181.0,96180.0,0.17121444]
[1739000132694,0.0416967,96181.0,96180.0,0.24901444]
[1739000135307,0.0416967,96181.0,96180.0,0.39901444]
[1739000136129,0.0416967,96181.0,96180.0,0.44661444]
[1739000138080,0.0416967,96181.0,96180.0,0.46748789]
[1739000138721,0.0416967,96181.0,96180.0,0.36881444]
[1739000138920,0.0416967,96181.0,96180.0,0.31053136]
[1739000140927,0.0416967,96181.0,96180.0,0.29106207]
[1739000142362,0.0416967,96181.0,96180.0,0.31052159]
[1739000142689,0.0416967,96181.0,96180.0,0.43592159]
[1739000145718,0.0416967,96181.0,96180.0,0.43392159]
[1739000146140,0.0416967,96181.0,96180.0,0.43592159]
[1739000146388,0.0416967,96181.0,96180.0,0.43692159]
[1739000146594,0.0416967,96181.0,96180.0,0.43492159]
[1739000146819,0.0416967,96181.0,96180.0,0.43892159]
[1739000147034,0.0416967,96181.0,96180.0,0.44092159]
[1739000148474,0.0416967,96181.0,96180.0,0.43792159]
[1739000148679,0.0416967,96181.0,96180.0,0.43992159]
[1739000148925,0.0416967,96181.0,96180.0,0.43592159]
[1739000149142,0.0416967,96181.0,96180.0,0.43992159]
[1739000150851,0.0416967,96181.0,96180.0,0.42046207]
[1739000151357,0.0416967,96181.0,96180.0,0.43992436]
[1739000161746,0.0416967,96181.0,96180.0,0.43592436]
[1739000162093,0.0416967,96181.0,96180.0,0.46705582]
[1739000162207,0.0416967,96181.0,96180.0,0.46905582]
[1739000162408,0.0416967,96181.0,96180.0,0.46705582]
[1739000162618,0.0416967,96181.0,96180.0,0.33965582]
[1739000162818,0.0416967,96181.0,96180.0,0.34065582]
[1739000164104,0.0416967,96181.0,96180.0,0.33965582]
[1739000164659,0.0416967,96181.0,96180.0,0.34065582]
[1739000164841,0.0416967,96181.0,96180.0,0.29006207]
[1739000164988,0.0416967,96181.0,96180.0,0.28906207]
[1739000165428,0.0416967,96181.0,96180.0,0.29006207]
[1739000165692,0.0416967,96181.0,96180.0,0.29106207]
[1739000165883,0.0416967,96181.0,96180.0,0.29006207]
[1739000166171,0.0416967,96181.0,96180.0,0.29306207]
[1739000167482,0.0416967,96181.0,96180.0,0.29006207]
[1739000167915,0.0416967,96181.0,96180.0,0.29206207]
[1739000168314,0.0416967,96181.0,96180.0,0.29306207]
[1739000170335,0.0416967,96181.0,96180.0,0.28906207]
[1739000170537,0.0416967,96181.0,96180.0,0.29106207]
[1739000170738,0.0416967,96181.0,96180.0,0.29206207]
[1739000171010,0.0416967,96181.0,96180.0,0.29106207]
[1739000171289,0.0416967,96181.0,96180.0,0.28906207]
[1739000172309,0.0416967,96181.0,96180.0,0.29106207]
[1739000173805,0.0416967,96181.0,96180.0,0.29206207]
[1739000174009,0.0416967,96181.0,96180.0,0.29106207]
[1739000174210,0.0416967,96181.0,96180.0,0.28906207]
[1739000174568,0.0416967,96181.0,96180.0,0.29206207]
[1739000174936,0.0416967,96181.0,96180.0,0.28906207]
[1739000175375,0.0416967,96181.0,96180.0,0.29006207]
[1739000177237,0.0416967,96181.0,96180.0,0.28906207]
[1739000177792,0.0416967,96181.0,96180.0,0.29006207]
[1739000178092,0.0416967,96181.0,96180.0,0.28906207]
[1739000178448,0.0416967,96181.0,96180.0,0.29006207]
[1739000181247,0.0416967,96181.0,96180.0,0.28906207]
[1739000187564,0.0416967,96181.0,96180.0,0.29206207]
[1739000188344,0.0416967,96181.0,96180.0,0.29306207]
[1739000188345,0.0832867,96181.0,96180.0,0.29306207]
[1739000189749,0.0832867,96181.0,96180.0,0.29006207]
[1739000189955,0.0832867,96181.0,96180.0,0.28906207]
[1739000190155,0.0832867,96181.0,96180.0,0.29106207]
[1739000190354,0.0832867,96181.0,96180.0,0.29206207]
[1739000192596,0.0832867,96181.0,96180.0,0.29006207]
[1739000193046,0.0832867,96181.0,96180.0,0.29206207]
[1739000193248,0.0832867,96181.0,96180.0,0.29106207]
[1739000193458,0.0832867,96181.0,96180.0,0.29006207]
[1739000193876,0.0832867,96181.0,96180.0,0.29206207]
[1739000194270,0.0832867,96181.0,96180.0,0.33756207]
[1739000194572,0.0832867,96181.0,96180.0,0.33656207]
[1739000194755,0.0832867,96181.0,96180.0,0.34056207]
[1739000196036,0.0832867,96181.0,96180.0,0.33756207]
[1739000196232,0.0832867,96181.0,96180.0,0.34256207]
[1739000196435,0.0832867,96181.0,96180.0,0.34356207]
[1739000196594,0.0832867,96181.0,96180.0,0.33656207]
[1739000196997,0.0832867,96181.0,96180.0,0.33856207]
[1739000197377,0.0832867,96181.0,96180.0,0.33656207]
[1739000197583,0.0832867,96181.0,96180.0,0.33756207]
[1739000197805,0.0832867,96181.0,96180.0,0.33956207]
[1739000199131,0.0832867,96181.0,96180.0,0.51576572]
[1739000199356,0.0832867,96181.0,96180.0,0.51476572]
[1739000199513,0.0832867,96181.0,96180.0,0.51576572]
[1739000199939,0.0832867,96181.0,96180.0,0.51476572]
[1739000200327,0.0832867,96181.0,96180.0,0.52176572]
[1739000200529,0.0002,96189.0,96181.0,0.15]
[1739000200773,0.0002,96189.0,96188.0,0.305944]
[1739000201128,0.0002,96189.0,96188.0,0.48414765]
[1739000202360,0.0002,96189.0,96188.0,0.50359757]
[1739000202914,0.0002,96189.0,96188.0,0.51600233]
[1739000205852,0.0002,96189.0,96188.0,0.53711512]
[1739000208181,0.0002,96189.0,96188.0,0.58461512]
[1739000209288,0.0002,96189.0,96188.0,0.58861512]
[1739000209933,0.0002,96189.0,96188.0,0.58961512]
[1739000210099,0.0002,96189.0,96188.0,0.58861512]
[1739000210276,0.0002,96189.0,96188.0,0.58561512]
[1739000210690,0.0003068,96189.0,96188.0,0.58961512]
[1739000211818,0.0001068,96196.0,96189.0,0.15]
[1739000212028,0.00015218,96196.0,96195.0,0.305933]
[1739000212685,0.00015218,96196.0,96195.0,0.32538292]
[1739000214981,0.00015218,96196.0,96195.0,0.305933]
[1739000229308,0.00015218,96196.0,96195.0,0.28926633]
[1739000240904,0.00067923,96211.0,96206.0,8.735e-05]
[1739000241127,0.03248438,96210.0,96207.0,0.155913]
[1739000241367,0.03248438,96209.0,96206.0,8.735e-05]
[1739000241590,0.03248438,96208.0,96206.0,0.15600135]
[1739000241807,4.538e-05,96211.0,96206.0,8.735e-05]
[1739000242032,0.03248457,96210.0,96209.0,0.155909]
[1739000242232,0.04569698,96210.0,96209.0,0.155909]
[1739000242435,0.03248457,96210.0,96209.0,0.155909]
[1739000243669,0.03248457,96210.0,96209.0,0.156909]
[1739000244055,0.04569597,96210.0,96209.0,0.156909]
[1739000244266,0.04569597,96210.0,96209.0,0.155909]
[1739000246042,0.04569597,96210.0,96206.0,8.735e-05]
[1739000246243,0.03248457,96209.0,96206.0,8.735e-05]
[1739000246442,0.0132114,96210.0,96207.0,0.155913]
[1739000246443,0.04569738,96208.0,96207.0,0.155913]
[1739000248212,0.03248457,96208.0,96207.0,0.155913]
[1739000250934,0.03248457,96208.0,96207.0,0.156913]
[1739000253282,4.538e-05,96211.0,96210.0,0.155908]
[1739000253500,0.03253134,96211.0,96210.0,0.155908]
[1739000255103,4.538e-05,96211.0,96210.0,0.155908]
[1739000256476,4.538e-05,96211.0,96210.0,0.305908]
[1739000257303,4.538e-05,96211.0,96210.0,0.306908]
[1739000257684,4.538e-05,96211.0,96210.0,0.305908]
[1739000258094,4.538e-05,96211.0,96210.0,0.307908]
[1739000260052,4.538e-05,96211.0,96210.0,0.32735204]
[1739000262419,4.538e-05,96211.0,96210.0,0.307908]
[1739000263405,4.538e-05,96211.0,96210.0,0.388208]
[1739000268149,4.538e-05,96211.0,96210.0,0.386208]
[1739000270671,4.538e-05,96211.0,96210.0,0.392208]
[1739000271070,4.538e-05,96211.0,96210.0,0.49471165]
[1739000271357,4.538e-05,96211.0,96210.0,0.49171165]
[1739000271571,0.00015218,96211.0,96210.0,0.49671165]
[1739000272202,0.00015218,96211.0,96210.0,0.56781165]
[1739000273123,0.00015218,96211.0,96210.0,0.58222293]
[1739000273328,0.0002,96229.0,96228.0,0.305879]
[1739000273460,0.00065391,96229.0,96228.0,0.305879]
[1739000273935,0.00065391,96229.0,96228.0,0.32529028]
[1739000274897,0.00065391,96229.0,96228.0,0.33529028]
[1739000276638,0.00065391,96229.0,96228.0,0.53233813]
[1739000277659,0.00065391,96229.0,96228.0,0.52633813]
[1739000277884,0.00065391,96229.0,96228.0,0.52533813]
[1739000278031,0.00065391,96229.0,96228.0,0.52633813]
[1739000278633,0.00065391,96229.0,96228.0,0.54851067]
[1739000279369,0.00065391,96229.0,96228.0,0.54551067]
[1739000279757,1e-08,96229.0,96228.0,0.54551067]
[1739000279937,1e-08,96229.0,96228.0,0.54851067]
[1739000280138,1e-08,96229.0,96228.0,0.54651067]
[1739000280352,1e-08,96229.0,96228.0,0.54751067]
[1739000280762,1e-08,96229.0,96228.0,0.54651067]
[1739000280984,1e-08,96229.0,96228.0,0.57853393]
[1739000281795,0.0001067,96246.0,96228.0,0.57753393]
[1739000282021,0.00015207,96246.0,96245.0,0.305852]
[1739000283586,0.00015207,96246.0,96245.0,0.36128654]
[1739000284142,0.00015207,96246.0,96245.0,0.36328654]
[1739000284923,0.00015207,96246.0,96245.0,0.312852]
[1739000287316,0.00015207,96246.0,96245.0,0.33223387]
[1739000289197,0.00015207,96246.0,96245.0,0.41463387]
[1739000289926,0.00015207,96246.0,96245.0,0.40963387]
[1739000290357,0.00015207,96246.0,96245.0,0.41463387]
[1739000290792,0.00015207,96246.0,96245.0,0.32723387]
[1739000291186,0.00015207,96246.0,96245.0,0.32523387]
[1739000291584,0.00015207,96246.0,96245.0,0.32723387]
[1739000292145,0.00015207,96246.0,96245.0,0.33023387]
[1739000292835,0.00015207,96246.0,96245.0,0.32723387]
[1739000293033,0.00015207,96246.0,96245.0,0.32523387]
[1739000293235,0.00015207,96246.0,96245.0,0.32623387]
[1739000293615,0.00015207,96246.0,96245.0,0.32523387]
[1739000294062,0.00015207,96246.0,96245.0,0.42873752]
[1739000294237,0.0145784,96249.0,96248.0,0.155847]
[1739000294600,0.00333776,96249.0,96248.0,0.40938941]
[1739000294787,0.00333776,96249.0,96248.0,0.42773252]
[1739000295424,7.6e-07,96249.0,96248.0,0.55373252]
[1739000295632,6.746e-05,96256.0,96249.0,0.15]
[1739000295808,6.746e-05,96256.0,96248.0,0.27288552]
[1739000295809,6.746e-05,96256.0,96255.0,0.431836]
[1739000296035,6.746e-05,96256.0,96255.0,0.53433965]
[1739000296235,0.0002,96269.0,96268.0,0.305815]
[1739000296791,0.0002,96269.0,96268.0,0.48441865]
[1739000297428,0.0002,96269.0,96268.0,0.48641865]
[1739000297627,0.00067923,96301.0,96277.0,0.1558]
[1739000297859,0.04196278,96278.0,96277.0,0.40934223]
[1739000298058,0.04196278,96278.0,96277.0,0.40830365]
[1739000298342,0.04196278,96278.0,96277.0,0.5734577]
[1739000298970,0.04196278,96278.0,96277.0,0.47395405]
[1739000299196,0.04196278,96278.0,96277.0,0.39485405]
[1739000299384,0.04196278,96278.0,96277.0,0.40711135]
[1739000300388,0.04196278,96278.0,96277.0,0.41211135]
[1739000301039,0.04196278,96278.0,96277.0,0.37342212]
[1739000301229,0.04196278,96278.0,96277.0,0.37642212]
[1739000301357,0.04196278,96278.0,96277.0,0.37342212]
[1739000301767,0.04196278,96278.0,96277.0,0.36942212]
[1739000302193,0.04196278,96278.0,96277.0,0.37242212]
[1739000302736,0.04196278,96278.0,96277.0,0.36016482]
[1739000303171,0.04196278,96278.0,96277.0,0.35716482]
[1739000304009,0.04196278,96278.0,96277.0,0.05136482]
[1739000304299,0.04196278,96278.0,96277.0,0.05036482]
[1739000304487,0.06900421,96278.0,96277.0,0.05036482]
[1739000305070,0.05689916,96278.0,96267.0,0.16938187]
[1739000305267,0.05689916,96278.0,96269.0,0.155812]
[1739000305486,0.05689916,96278.0,96267.0,0.01938187]
[1739000306044,0.05689916,96278.0,96271.0,0.15]
[1739000307244,0.05689916,96278.0,96270.0,0.155811]
[1739000307450,0.05789916,96278.0,96272.0,0.155807]
[1739000307651,0.05689916,96278.0,96272.0,0.155807]
[1739000308062,0.05789916,96278.0,96272.0,0.155807]
[1739000308277,0.05689916,96278.0,96272.0,0.155807]
[1739000308698,0.05689916,96278.0,96271.0,0.15]
[1739000308699,0.05789916,96278.0,96271.0,0.15]
[1739000309202,0.05789916,96278.0,96269.0,0.00022428]
[1739000309362,0.05789916,96278.0,96275.0,0.155803]
[1739000309593,0.01645916,96278.0,96275.0,0.155803]
[1739000310255,0.01645916,96278.0,96271.0,0.207746]
[1739000310256,0.01645916,96278.0,96273.0,0.155805]
[1739000310433,0.01645916,96278.0,96271.0,0.207746]
[1739000310434,0.01545916,96278.0,96274.0,0.155804]
[1739000310647,0.00052278,96278.0,96274.0,0.155804]
[1739000310842,0.00052278,96278.0,96275.0,0.01934767]
[1739000311051,0.00152278,96278.0,96275.0,0.01934767]
[1739000311681,0.00052278,96278.0,96275.0,0.01934767]
[1739000311929,0.00152278,96278.0,96273.0,0.17515367]
[1739000312120,0.00152278,96278.0,96273.0,0.01934767]
[1739000312324,0.01493638,96277.0,96275.0,0.001]
[1739000312728,0.01493638,96277.0,96273.0,0.01934767]
[1739000313155,0.00052278,96278.0,96273.0,0.02034767]
[1739000313362,0.01493058,96276.0,96273.0,0.02034767]
[1739000313512,0.00067923,96275.0,96273.0,0.02034767]
[1739000313730,0.11625171,96278.0,96273.0,0.02034767]
[1739000313731,0.01492587,96274.0,96273.0,0.02034767]
[1739000314228,0.00067923,96276.0,96273.0,0.001]
[1739000314433,0.01492587,96274.0,96269.0,0.00022428]
[1739000314655,0.00067923,96276.0,96273.0,0.001]
[1739000315037,0.00067923,96277.0,96273.0,0.001]
[1739000315220,0.00067923,96276.0,96269.0,0.00022428]
[1739000315417,0.31024165,96275.0,96269.0,0.00022428]
[1739000315621,0.0762,96272.0,96269.0,0.00022428]
[1739000315817,0.00067923,96271.0,96269.0,0.00022428]
[1739000316449,0.07687923,96272.0,96269.0,0.00022428]
[1739000317264,0.30419288,96271.0,96269.0,0.00022428]
[1739000317467,0.30419288,96271.0,96269.0,0.00122428]
[1739000317664,0.30419288,96271.0,96269.0,0.00022428]
[1739000317906,0.30419288,96271.0,96269.0,0.00322428]
[1739000318301,0.30419288,96271.0,96269.0,0.00422428]
[1739000318505,0.30419288,96271.0,96269.0,0.00022428]
[1739000318904,0.155811,96270.0,96269.0,0.00022428]
[1739000319167,0.25831465,96270.0,96269.0,0.00022428]
[1739000319548,0.11042365,96270.0,96269.0,0.00022428]
[1739000319748,0.00792,96270.0,96269.0,0.00022428]
[1739000319991,0.00792,96277.0,96269.0,0.00022428]
[1739000320098,0.001,96271.0,96269.0,0.00022428]
[1739000320552,0.11110288,96277.0,96269.0,0.00022428]
[1739000320751,0.001,96270.0,96269.0,0.00022428]
[1739000320950,0.26690388,96277.0,96269.0,0.00022428]
[1739000321331,0.001,96271.0,96269.0,0.00022428]
[1739000321954,0.0159226,96270.0,96269.0,0.00022428]
[1739000322394,0.001,96270.0,96269.0,0.00022428]
[1739000322600,0.0159226,96270.0,96269.0,0.00022428]
[1739000323181,0.0149226,96270.0,96269.0,0.00022428]
[1739000323396,0.11810548,96270.0,96269.0,0.00022428]
[1739000324247,0.11910548,96270.0,96269.0,0.00022428]
[1739000324995,0.27491648,96270.0,96269.0,0.00022428]
[1739000325217,0.27423725,96270.0,96269.0,0.00022428]
[1739000326199,0.30661684,96270.0,96269.0,0.00022428]
[1739000326655,0.27423725,96270.0,96269.0,0.00022428]
[1739000330468,0.38281321,96270.0,96269.0,0.00022428]
[1739000330669,0.35043725,96270.0,96269.0,0.00022428]
[1739000331349,0.38281181,96270.0,96269.0,0.00022428]
[1739000331839,0.35043725,96270.0,96269.0,0.00022428]
[1739000332044,0.38281185,96270.0,96269.0,0.00022428]
[1739000332191,0.35043725,96270.0,96269.0,0.00022428]
[1739000334301,0.38282782,96270.0,96269.0,0.00022428]
[1739000334895,0.11842625,96270.0,96269.0,0.00022428]
[1739000335083,0.11910548,96270.0,96269.0,0.00022428]
[1739000335707,0.27491648,96270.0,96269.0,0.00022428]
[1739000335819,0.27423725,96270.0,96269.0,0.00022428]
[1739000336231,0.30663805,96270.0,96269.0,0.00022428]
[1739000336772,0.31455805,96270.0,96269.0,0.00022428]
[1739000338147,0.15874705,96270.0,96269.0,0.00022428]
[1739000338282,0.15942628,96270.0,96269.0,0.00022428]
[1739000339377,0.31523728,96270.0,96269.0,0.00022428]
[1739000339572,0.31455805,96270.0,96269.0,0.00022428]
[1739000340851,0.15874705,96270.0,96269.0,0.00022428]
[1739000341061,0.27360199,96270.0,96269.0,0.00022428]
[1739000341279,0.42873376,96270.0,96269.0,0.00022428]
[1739000341693,0.27292276,96270.0,96269.0,0.00022428]
[1739000342988,0.42873376,96270.0,96269.0,0.00022428]
[1739000343408,0.27292276,96270.0,96269.0,0.00022428]
[1739000344119,0.16249911,96270.0,96269.0,0.00022428]
[1739000344349,0.16249911,96270.0,96269.0,0.15603728]
[1739000345291,0.16249911,96270.0,96269.0,0.17546335]
[1739000346399,0.16249911,96270.0,96269.0,0.25296335]
[1739000346597,0.13009831,96270.0,96269.0,0.25296335]
[1739000346803,0.11517571,96270.0,96269.0,0.25296335]
[1739000347040,0.001,96270.0,96269.0,0.40296335]
[1739000347447,0.00052278,96278.0,96277.0,0.1558]
[1739000348578,0.00052278,96278.0,96277.0,0.17522607]
[1739000349559,0.00052278,96278.0,96277.0,0.44832607]
[1739000349983,0.00052278,96278.0,96277.0,0.44280402]
[1739000350437,0.00052278,96278.0,96277.0,0.44480402]
[1739000350760,0.00052278,96278.0,96277.0,0.44080402]
[1739000351113,0.00052278,96278.0,96277.0,0.44280402]
[1739000351316,0.00052278,96278.0,96277.0,0.44080402]
[1739000351517,0.00052278,96278.0,96277.0,0.44380402]
[1739000351902,0.00052278,96278.0,96277.0,0.44780402]
[1739000352508,0.00052278,96278.0,96277.0,0.44380402]
[1739000352707,0.00052278,96278.0,96277.0,0.44780402]
[1739000353117,0.00052278,96278.0,96277.0,0.44480402]
[1739000353571,0.00052278,96278.0,96277.0,0.44680402]
[1739000354153,0.00052278,96278.0,96277.0,0.44880402]
[1739000361935,0.00052278,96278.0,96277.0,0.32570402]
[1739000362196,0.00052278,96278.0,96277.0,0.3138]
[1739000362787,0.00052278,96278.0,96277.0,0.3098]
[1739000363144,0.00052278,96278.0,96277.0,0.3128]
[1739000363984,0.00052278,96278.0,96277.0,0.3088]
[1739000364159,0.00052278,96278.0,96277.0,0.3098]
[1739000364355,0.00052278,96278.0,96277.0,0.31002428]
[1739000365032,0.00052278,96278.0,96277.0,0.30602428]
[1739000365245,0.00052278,96278.0,96277.0,0.43702428]
[1739000365456,0.00052278,96278.0,96277.0,0.44002428]
[1739000366197,0.00052278,96278.0,96277.0,0.43802428]
[1739000366605,0.00052278,96278.0,96277.0,0.44202428]
[1739000366867,0.00052278,96278.0,96277.0,0.44102428]
[1739000367203,0.00052278,96278.0,96277.0,0.44402428]
[1739000368021,0.00052278,96278.0,96277.0,0.44002428]
[1739000368444,0.00052278,96278.0,96277.0,0.44502428]
[1739000369050,0.00052278,96278.0,96277.0,0.44002428]
[1739000369258,0.00052278,96278.0,96277.0,0.44402428]
[1739000369864,0.00052278,96278.0,96277.0,0.44002428]
[1739000370065,0.00052278,96278.0,96277.0,0.44402428]
[1739000370463,0.00052278,96278.0,96277.0,0.44102428]
[1739000370659,0.0001068,96293.0,96278.0,0.19091722]
[1739000370863,0.0001068,96293.0,96283.0,0.15579]
[1739000372796,0.0001068,96293.0,96283.0,0.15679]
[1739000375126,0.0001068,96293.0,96283.0,0.001]
[1739000375333,0.15656003,96293.0,96283.0,0.15679]
[1739000375675,0.155776,96292.0,96283.0,0.15679]
[1739000376209,0.155776,96292.0,96283.0,0.15579]
[1739000376836,0.0002598,96284.0,96283.0,0.15579]
[1739000378205,0.0002598,96284.0,96279.0,0.155795]
[1739000378402,0.01517722,96284.0,96278.0,0.24864822]
[1739000379038,0.01517722,96284.0,96282.0,0.155791]
[1739000379443,0.0002598,96284.0,96282.0,0.155791]
[1739000379969,0.0002598,96284.0,96278.0,0.04091722]
[1739000380169,0.03241126,96283.0,96278.0,0.04091722]
[1739000380382,0.04800692,96283.0,96278.0,0.04091722]
[1739000380534,0.18820326,96282.0,96278.0,0.04091722]
[1739000380737,0.03241126,96281.0,96278.0,0.04091722]
[1739000380947,0.01559566,96283.0,96278.0,0.04091722]
[1739000380948,0.03241126,96280.0,96278.0,0.04091722]
[1739000381153,0.01491643,96280.0,96278.0,0.04091722]
[1739000381540,0.27022412,96284.0,96278.0,0.04091722]
[1739000381898,0.001,96282.0,96278.0,0.04091722]
[1739000382074,0.03242972,96281.0,96278.0,0.04091722]
[1739000382398,0.11443412,96284.0,96278.0,0.04091722]
[1739000382609,0.01491643,96280.0,96278.0,0.04091722]
[1739000382807,0.11443412,96284.0,96278.0,0.04091722]
[1739000383013,0.04734363,96283.0,96278.0,0.04091722]
[1739000383219,0.11511335,96284.0,96278.0,0.04091722]
[1739000383220,0.0324272,96282.0,96278.0,0.04091722]
[1739000383418,0.155796,96280.0,96278.0,0.04091722]
[1739000383557,0.13493085,96279.0,96278.0,0.04091722]
[1739000383980,0.15052254,96279.0,96278.0,0.04091722]
[1739000384597,0.14984331,96279.0,96278.0,0.04091722]
[1739000385258,0.15184331,96279.0,96278.0,0.04091722]
[1739000385618,0.15252254,96279.0,96278.0,0.04191722]
[1739000385917,0.15184331,96279.0,96278.0,0.04191722]
[1739000386065,0.30764031,96279.0,96278.0,0.04091722]
[1739000388878,0.30774711,96279.0,96278.0,0.04091722]
[1739000390392,0.27531991,96279.0,96278.0,0.04091722]
[1739000395444,0.30771821,96279.0,96278.0,0.04091722]
[1739000399171,0.31563821,96279.0,96278.0,0.04091722]
[1739000400389,0.27401692,96279.0,96278.0,0.04091722]
[1739000400795,0.42981392,96279.0,96278.0,0.04091722]
[1739000402135,0.42981392,96279.0,96278.0,0.0411415]
[1739000404348,0.27401692,96279.0,96278.0,0.0411415]
[1739000404759,0.42981392,96279.0,96278.0,0.0411415]
[1739000404959,0.27401692,96279.0,96278.0,0.0411415]
[1739000405527,0.42981392,96279.0,96278.0,0.0411415]
[1739000406801,0.27401692,96279.0,96278.0,0.0411415]
[1739000407002,0.42981392,96279.0,96278.0,0.0411415]
[1739000407589,0.39795678,96279.0,96278.0,0.0411415]
[1739000407803,0.55425678,96279.0,96278.0,0.0411415]
[1739000407998,0.55425678,96279.0,96269.0,0.00022428]
[1739000407999,0.155811,96270.0,96269.0,0.00022428]
[1739000408250,0.30629921,96270.0,96269.0,0.00022428]
[1739000408426,0.30561998,96270.0,96269.0,0.00022428]
[1739000409235,0.41188044,96270.0,96269.0,0.00022428]
[1739000409808,0.38061998,96270.0,96269.0,0.00022428]
[1739000410264,0.38261998,96270.0,96269.0,0.00022428]
[1739000410647,0.38761998,96270.0,96269.0,0.00022428]
[1739000412183,0.155826,96261.0,96247.0,0.08277161]
[1739000412380,0.10318288,96260.0,96247.0,0.08290769]
[1739000412652,0.11797982,96260.0,96247.0,0.08290769]
[1739000412787,0.27380782,96260.0,96248.0,0.155847]
[1739000413814,0.11797982,96260.0,96247.0,0.00013608]
[1739000414013,0.11997982,96260.0,96247.0,0.00013608]
[1739000414225,0.11997982,96260.0,96249.0,0.155845]
[1739000414590,0.12397982,96260.0,96249.0,0.155845]
[1739000414786,0.11997982,96260.0,96249.0,0.155845]
[1739000415417,0.11797982,96260.0,96250.0,0.155843]
[1739000416077,0.27380782,96260.0,96248.0,0.155846]
[1739000416221,0.27380782,96260.0,96247.0,0.20793208]
[1739000416423,0.27380782,96260.0,96247.0,0.00013608]
[1739000416627,0.25901088,96260.0,96247.0,0.00013608]
[1739000416835,0.01479694,96259.0,96247.0,0.00013608]
[1739000417077,0.10318288,96258.0,96247.0,0.00013608]
[1739000417478,0.01479694,96257.0,96247.0,0.00013608]
[1739000417640,0.11797982,96257.0,96247.0,0.00013608]
[1739000418693,0.11897982,96257.0,96247.0,0.00013608]
[1739000420389,0.01579694,96257.0,96247.0,0.14530937]
[1739000420595,0.01579694,96257.0,96252.0,0.0781]
[1739000420802,0.001,96257.0,96253.0,0.155839]
[1739000422356,0.001,96257.0,96252.0,0.0781]
[1739000422804,0.11417571,96259.0,96252.0,0.0781]
[1739000423228,0.001,96257.0,96252.0,0.0781]
[1739000423436,0.11417571,96259.0,96252.0,0.0781]
[1739000423793,0.001,96257.0,96253.0,0.155839]
[1739000424218,0.001,96257.0,96254.0,0.155837]
[1739000424392,0.01479799,96256.0,96254.0,0.155837]
[1739000424611,0.11517571,96259.0,96254.0,0.155837]
[1739000424849,0.11417571,96259.0,96252.0,0.0781]
[1739000425151,0.01479799,96258.0,96252.0,0.233939]
[1739000425326,0.01479799,96258.0,96252.0,0.08977631]
[1739000425494,0.01479799,96258.0,96253.0,0.155839]
[1739000425896,0.11617571,96259.0,96253.0,0.155839]
[1739000426461,0.11417571,96259.0,96253.0,0.155839]
[1739000426610,0.11517571,96259.0,96252.0,0.08977631]
[1739000426817,0.11517571,96259.0,96254.0,0.155837]
[1739000427042,0.01579799,96258.0,96254.0,0.155837]
[1739000427245,0.01579799,96258.0,96253.0,0.155839]
[1739000427418,0.11617571,96259.0,96253.0,0.155839]
[1739000427617,0.11817571,96259.0,96252.0,0.29756331]
[1739000427844,0.11617571,96259.0,96254.0,0.155836]
[1739000428248,0.001,96258.0,96252.0,0.08977631]
[1739000428593,0.01479799,96257.0,96253.0,0.0454]
[1739000428770,0.01479799,96257.0,96256.0,0.233934]
[1739000429309,0.002,96258.0,96257.0,0.305832]
[1739000429553,0.002,96258.0,96257.0,0.429332]
[1739000429974,0.001,96258.0,96257.0,0.429332]
[1739000430181,0.0001068,96260.0,96259.0,0.233929]
[1739000430799,0.0001068,96260.0,96259.0,0.279329]
[1739000431509,0.0001068,96260.0,96259.0,0.28901584]
[1739000431872,0.0001068,96260.0,96259.0,0.29101584]
[1739000432866,0.11417571,96278.0,96259.0,0.29101584]
[1739000432867,0.01161663,96276.0,96262.0,0.207766]
[1739000433077,0.11485494,96278.0,96269.0,0.155811]
[1739000433355,0.21667936,96278.0,96269.0,0.155811]
[1739000433720,0.21667936,96278.0,96260.0,0.09537899]
[1739000433929,0.21667936,96278.0,96270.0,0.155811]
[1739000434144,0.21667936,96278.0,96268.0,0.155813]
[1739000434500,0.005,96276.0,96268.0,0.155813]
[1739000435096,0.005,96276.0,96269.0,0.001]
[1739000435437,0.005,96276.0,96269.0,0.156813]
[1739000435639,0.005,96276.0,96269.0,0.001]
[1739000435770,0.21867936,96278.0,96269.0,0.001]
[1739000435980,0.22367936,96278.0,96269.0,0.001]
[1739000436675,0.005,96276.0,96269.0,0.001]
[1739000437036,0.005,96276.0,96260.0,0.09537899]
[1739000437037,0.00067923,96275.0,96260.0,0.1501732]
[1739000437354,0.15648423,96275.0,96264.0,0.155821]
[1739000438290,0.15648423,96275.0,96265.0,0.155819]
[1739000438703,0.00067923,96275.0,96260.0,0.1501732]
[1739000438912,0.007,96276.0,96267.0,0.155815]
[1739000439221,0.0001068,96275.0,96269.0,0.155813]
[1739000439429,0.0051068,96275.0,96269.0,0.155813]
[1739000440012,0.0071068,96275.0,96267.0,0.0759]
[1739000440217,0.0021068,96275.0,96269.0,0.155811]
[1739000440485,0.0051068,96275.0,96269.0,0.155811]
[1739000440718,0.0051068,96275.0,96270.0,0.15581]
[1739000440916,0.0071068,96275.0,96270.0,0.15581]
[1739000441155,0.0071068,96275.0,96268.0,0.155813]
[1739000441337,0.01659453,96274.0,96268.0,0.155815]
[1739000441772,0.01659453,96274.0,96267.0,0.283655]
[1739000441967,0.01659453,96274.0,96269.0,0.155813]
[1739000442395,0.01659453,96274.0,96267.0,0.283655]
[1739000442579,0.01659453,96274.0,96269.0,0.155813]
[1739000442939,0.02059453,96274.0,96269.0,0.155813]
[1739000443591,0.02059453,96274.0,96267.0,0.0759]
[1739000443778,0.02059453,96274.0,96263.0,0.207762]
[1739000443779,0.01659453,96274.0,96264.0,0.15582]
[1739000444008,0.01859453,96274.0,96266.0,0.155817]
[1739000444234,0.15648623,96273.0,96261.0,0.0759]
[1739000444346,0.15648623,96273.0,96262.0,0.155824]
[1739000444563,0.01659502,96272.0,96260.0,0.1501732]
[1739000444754,0.10318288,96271.0,96263.0,0.00968573]
[1739000444954,0.155813,96269.0,96263.0,0.00968573]
[1739000445158,0.15649523,96268.0,96263.0,0.00968573]
[1739000445359,0.10250365,96269.0,96263.0,0.00968573]
[1739000445556,0.01659502,96267.0,96260.0,0.0001732]
[1739000445762,0.10250365,96269.0,96260.0,0.1560002]
[1739000446319,0.01858361,96268.0,96260.0,0.1560002]
[1739000446716,0.001,96267.0,96260.0,0.1560002]
[1739000447160,0.01658361,96266.0,96264.0,0.155821]
[1739000447804,0.004,96268.0,96261.0,0.207768]